[Event "Late-Titled-Tuesday-Blitz-April-16-2024"]
[Site "Chess.com"]
[Date "2024.04.16"]
[Round "1"]
[White "marcodobrikov"]
[Black "Mihajlovskij"]
[Result "1-0"]
[WhiteElo "2562"]
[BlackElo "2196"]
[TimeControl "180+1"]
[EndTime "14:06:38 PDT"]
[Termination "marcodobrikov won on time"]

1. e4 {[%clk 0:02:51.1]} 1... d5 {[%clk 0:02:59.8]} 2. Nc3 {[%clk 0:02:43.8]}
2... Nf6 {[%clk 0:02:58.8]} 3. e5 {[%clk 0:02:42]} 3... Ne4 {[%clk 0:02:57.6]}
4. Nce2 {[%clk 0:02:41.2]} 4... d4 {[%clk 0:02:40.7]} 5. d3 {[%clk 0:02:34]}
5... Nc5 {[%clk 0:02:38.3]} 6. f4 {[%clk 0:02:27.7]} 6... Nc6 {[%clk 0:02:35.1]}
7. Nf3 {[%clk 0:02:28]} 7... Bg4 {[%clk 0:02:31.7]} 8. Ng3 {[%clk 0:02:21.8]}
8... Qd5 {[%clk 0:02:26.6]} 9. Be2 {[%clk 0:02:21.8]} 9... e6 {[%clk 0:02:16.1]}
10. O-O {[%clk 0:02:20.2]} 10... h6 {[%clk 0:01:07.7]} 11. Bd2 {[%clk
0:02:16.8]} 11... O-O-O {[%clk 0:01:07]} 12. b4 {[%clk 0:02:16.4]} 12... Na4
{[%clk 0:01:05.8]} 13. a3 {[%clk 0:02:09]} 13... f6 {[%clk 0:00:59.5]} 14. exf6
{[%clk 0:02:03.7]} 14... gxf6 {[%clk 0:01:00.4]} 15. Nh4 {[%clk 0:02:02]} 15...
Bxe2 {[%clk 0:00:59.8]} 16. Qxe2 {[%clk 0:02:02.9]} 16... Bg7 {[%clk 0:00:52.8]}
17. Nh5 {[%clk 0:02:01.8]} 17... Rd7 {[%clk 0:00:51.6]} 18. Rae1 {[%clk
0:02:01]} 18... Re8 {[%clk 0:00:51.2]} 19. g4 {[%clk 0:01:53.7]} 19... Rde7
{[%clk 0:00:48]} 20. Qg2 {[%clk 0:01:48.4]} 20... Qd7 {[%clk 0:00:46.8]} 21. h3
{[%clk 0:01:48.2]} 21... Nc3 {[%clk 0:00:41.2]} 22. f5 {[%clk 0:01:44.8]} 22...
e5 {[%clk 0:00:39.5]} 23. Ng6 {[%clk 0:01:35.7]} 23... Rf7 {[%clk 0:00:35.1]}
24. Nxg7 {[%clk 0:01:33.4]} 24... Rxg7 {[%clk 0:00:35.3]} 25. Bxh6 {[%clk
0:01:34.3]} 25... Rh7 {[%clk 0:00:35.9]} 26. Bd2 {[%clk 0:01:35]} 26... Nd5
{[%clk 0:00:34.3]} 27. h4 {[%clk 0:01:34.5]} 27... Rg8 {[%clk 0:00:31.6]} 28. h5
{[%clk 0:01:34.8]} 28... Nce7 {[%clk 0:00:29.6]} 29. Qe4 {[%clk 0:01:29.6]}
29... Qe8 {[%clk 0:00:21.3]} 30. Kg2 {[%clk 0:01:29.2]} 30... Qc6 {[%clk
0:00:13]} 31. Rf3 {[%clk 0:01:23.8]} 31... Qxc2 {[%clk 0:00:12.6]} 32. Re2
{[%clk 0:01:23]} 32... Qa4 {[%clk 0:00:09.8]} 33. g5 {[%clk 0:01:23]} 33... fxg5
{[%clk 0:00:09.6]} 34. f6 {[%clk 0:01:22.8]} 34... Nxg6 {[%clk 0:00:09.7]} 35.
Qxd5 {[%clk 0:01:17.4]} 35... Qe8 {[%clk 0:00:07.8]} 36. hxg6 {[%clk 0:01:16.8]}
36... Qxg6 {[%clk 0:00:07.2]} 37. Qxe5 {[%clk 0:01:06.6]} 37... Rf8 {[%clk
0:00:06.1]} 38. Qf5+ {[%clk 0:01:07]} 38... Qxf5 {[%clk 0:00:06.4]} 39. Rxf5
{[%clk 0:01:07.9]} 1-0

[Event "Late-Titled-Tuesday-Blitz-April-16-2024"]
[Site "Chess.com"]
[Date "2024.04.16"]
[Round "1"]
[White "noblerone"]
[Black "Ramil_Faizrakhmanov"]
[Result "0-1"]
[WhiteElo "2495"]
[BlackElo "2911"]
[TimeControl "180+1"]
[EndTime "14:06:40 PDT"]
[Termination "Ramil_Faizrakhmanov won by resignation"]

1. d4 {[%clk 0:02:59.8]} 1... Nf6 {[%clk 0:02:59.8]} 2. Nf3 {[%clk 0:02:47.4]}
2... d5 {[%clk 0:02:59.9]} 3. Bg5 {[%clk 0:02:45.4]} 3... c5 {[%clk 0:02:58.5]}
4. e3 {[%clk 0:02:45.6]} 4... Nc6 {[%clk 0:02:58.4]} 5. c3 {[%clk 0:02:44.7]}
5... Qb6 {[%clk 0:02:58.3]} 6. Qb3 {[%clk 0:02:44.3]} 6... c4 {[%clk 0:02:58.3]}
7. Qxb6 {[%clk 0:02:44.3]} 7... axb6 {[%clk 0:02:59.2]} 8. Bxf6 {[%clk
0:02:30.6]} 8... gxf6 {[%clk 0:02:53.2]} 9. e4 {[%clk 0:02:31.2]} 9... dxe4
{[%clk 0:02:44.3]} 10. Nfd2 {[%clk 0:02:31.3]} 10... b5 {[%clk 0:02:41.8]} 11.
Nxe4 {[%clk 0:02:31]} 11... Bf5 {[%clk 0:02:41.3]} 12. f3 {[%clk 0:02:29.7]}
12... O-O-O {[%clk 0:02:13.4]} 13. Na3 {[%clk 0:02:16.5]} 13... Bxe4 {[%clk
0:02:07.3]} 14. fxe4 {[%clk 0:02:16.5]} 14... e5 {[%clk 0:02:06.7]} 15. Nxb5
{[%clk 0:02:02.3]} 15... exd4 {[%clk 0:02:06.1]} 16. Bxc4 {[%clk 0:02:03]} 16...
dxc3 {[%clk 0:02:05.6]} 17. Nxc3 {[%clk 0:01:56.9]} 17... Ne5 {[%clk 0:02:02.4]}
18. Bd5 {[%clk 0:01:29.9]} 18... Bb4 {[%clk 0:02:01.7]} 19. O-O-O {[%clk
0:01:27.2]} 19... Rd7 {[%clk 0:01:33.2]} 20. h3 {[%clk 0:01:17.9]} 20... h5
{[%clk 0:01:24]} 21. Rhf1 {[%clk 0:01:14.8]} 21... Rh6 {[%clk 0:01:15.9]} 22.
Kc2 {[%clk 0:01:09.4]} 22... Rg6 {[%clk 0:01:15.7]} 23. Rf2 {[%clk 0:01:08.3]}
23... Bc5 {[%clk 0:01:09.2]} 24. Re2 {[%clk 0:01:05.4]} 24... Rg3 {[%clk
0:01:03.4]} 25. a3 {[%clk 0:01:04.4]} 25... Kb8 {[%clk 0:01:01.2]} 26. Rf1
{[%clk 0:00:59.1]} 26... Be7 {[%clk 0:00:56]} 27. Rf5 {[%clk 0:00:58.6]} 27...
Rc7 {[%clk 0:00:55.1]} 28. Rxh5 {[%clk 0:00:36.5]} 28... Bxa3 {[%clk 0:00:53.4]}
29. Rh8+ {[%clk 0:00:16]} 29... Ka7 {[%clk 0:00:53.1]} 30. Rh7 {[%clk
0:00:06.9]} 30... Bxb2 {[%clk 0:00:48]} 31. Kxb2 {[%clk 0:00:07.2]} 31... Rgxc3
{[%clk 0:00:48.1]} 32. Rh8 {[%clk 0:00:05.8]} 32... Nd3+ {[%clk 0:00:47.7]} 33.
Ka2 {[%clk 0:00:06]} 33... Nc1+ {[%clk 0:00:47.8]} 0-1

[Event "Late-Titled-Tuesday-Blitz-April-16-2024"]
[Site "Chess.com"]
[Date "2024.04.16"]
[Round "1"]
[White "Beca95"]
[Black "db-banana"]
[Result "1-0"]
[WhiteElo "2862"]
[BlackElo "2471"]
[TimeControl "180+1"]
[EndTime "14:06:41 PDT"]
[Termination "Beca95 won on time"]

1. d4 {[%clk 0:02:58.3]} 1... Nf6 {[%clk 0:02:57.7]} 2. c4 {[%clk 0:02:57.8]}
2... c5 {[%clk 0:02:57.6]} 3. d5 {[%clk 0:02:57.9]} 3... e6 {[%clk 0:02:56.6]}
4. Nc3 {[%clk 0:02:57.9]} 4... exd5 {[%clk 0:02:53.7]} 5. cxd5 {[%clk
0:02:57.1]} 5... d6 {[%clk 0:02:48.5]} 6. Nf3 {[%clk 0:02:56.4]} 6... g6 {[%clk
0:02:48.9]} 7. e4 {[%clk 0:02:54.9]} 7... Bg7 {[%clk 0:02:49.1]} 8. Bg5 {[%clk
0:02:54.2]} 8... O-O {[%clk 0:02:46.2]} 9. Nd2 {[%clk 0:02:53.9]} 9... h6 {[%clk
0:02:41.5]} 10. Bh4 {[%clk 0:02:53.8]} 10... Re8 {[%clk 0:02:34.2]} 11. Be2
{[%clk 0:02:53.7]} 11... Nbd7 {[%clk 0:02:33.5]} 12. O-O {[%clk 0:02:52.3]}
12... a6 {[%clk 0:02:33.1]} 13. a4 {[%clk 0:02:51.9]} 13... g5 {[%clk
0:02:19.5]} 14. Bg3 {[%clk 0:02:51.7]} 14... Ne5 {[%clk 0:02:08]} 15. Bxe5
{[%clk 0:02:47.3]} 15... Rxe5 {[%clk 0:01:56.5]} 16. Nc4 {[%clk 0:02:47.2]}
16... Re8 {[%clk 0:01:55]} 17. Qc2 {[%clk 0:02:44.1]} 17... Rb8 {[%clk
0:01:53.7]} 18. a5 {[%clk 0:02:43.9]} 18... Qe7 {[%clk 0:01:46.4]} 19. e5 {[%clk
0:02:43]} 19... dxe5 {[%clk 0:01:39.3]} 20. d6 {[%clk 0:02:40.9]} 20... Qd8
{[%clk 0:01:37.7]} 21. Rad1 {[%clk 0:02:40.7]} 21... Bd7 {[%clk 0:01:30.1]} 22.
Rfe1 {[%clk 0:02:31.3]} 22... Bc6 {[%clk 0:01:28.3]} 23. Bd3 {[%clk 0:02:26]}
23... Kh8 {[%clk 0:00:47.7]} 24. Bf5 {[%clk 0:02:25.4]} 24... e4 {[%clk
0:00:30.6]} 25. Nxe4 {[%clk 0:02:23.4]} 25... Nxe4 {[%clk 0:00:20.4]} 26. Bxe4
{[%clk 0:02:23.1]} 26... Bb5 {[%clk 0:00:14.5]} 27. Nb6 {[%clk 0:02:03]} 27...
Bd4 {[%clk 0:00:12.5]} 28. d7 {[%clk 0:01:53.8]} 28... Bxd7 {[%clk 0:00:09.4]}
29. b4 {[%clk 0:01:51.8]} 29... Bg4 {[%clk 0:00:03]} 30. Rd2 {[%clk 0:01:33.8]}
30... f5 {[%clk 0:00:02.6]} 31. bxc5 {[%clk 0:01:26.4]} 31... fxe4 {[%clk
0:00:02.8]} 32. Qc4 {[%clk 0:01:26.3]} 32... e3 {[%clk 0:00:02.1]} 33. Qxd4+
{[%clk 0:01:25.7]} 33... Qxd4 {[%clk 0:00:02.7]} 34. Rxd4 {[%clk 0:01:25.9]}
34... exf2+ {[%clk 0:00:03.4]} 35. Kxf2 {[%clk 0:01:26.1]} 35... Rxe1 {[%clk
0:00:04.1]} 36. Kxe1 {[%clk 0:01:26.3]} 36... Re8+ {[%clk 0:00:04.8]} 37. Kf2
{[%clk 0:01:26.6]} 37... Re2+ {[%clk 0:00:03.8]} 38. Kf1 {[%clk 0:01:26.6]}
38... Rc2 {[%clk 0:00:02.9]} 39. Rxg4 {[%clk 0:01:26.3]} 39... Rxc5 {[%clk
0:00:02.5]} 40. Ra4 {[%clk 0:01:25.8]} 40... Kg7 {[%clk 0:00:02.6]} 41. Nc4
{[%clk 0:01:25.4]} 41... Kf6 {[%clk 0:00:03]} 42. Ke2 {[%clk 0:01:25.4]} 42...
Ke6 {[%clk 0:00:02.5]} 43. Kd3 {[%clk 0:01:25.4]} 43... Rd5+ {[%clk 0:00:02]}
44. Ke4 {[%clk 0:01:25.6]} 44... Rb5 {[%clk 0:00:01.2]} 45. Ne3 {[%clk
0:01:25.1]} 45... Rb2 {[%clk 0:00:01.4]} 46. h3 {[%clk 0:01:24.9]} 46... h5
{[%clk 0:00:01.3]} 47. g4 {[%clk 0:01:24.4]} 1-0

[Event "Late-Titled-Tuesday-Blitz-April-16-2024"]
[Site "Chess.com"]
[Date "2024.04.16"]
[Round "1"]
[White "HajiyevKanan"]
[Black "larsmandreassen"]
[Result "1-0"]
[WhiteElo "2608"]
[BlackElo "2293"]
[TimeControl "180+1"]
[EndTime "14:06:48 PDT"]
[Termination "HajiyevKanan won on time"]

1. d4 {[%clk 0:03:00.9]} 1... d5 {[%clk 0:02:59.6]} 2. Nf3 {[%clk 0:03:00.9]}
2... Nf6 {[%clk 0:02:58.7]} 3. c4 {[%clk 0:03:01.6]} 3... e6 {[%clk 0:02:57.8]}
4. Nc3 {[%clk 0:03:01.5]} 4... c5 {[%clk 0:02:56.1]} 5. cxd5 {[%clk 0:03:00.6]}
5... cxd4 {[%clk 0:02:56.1]} 6. Qa4+ {[%clk 0:02:59.8]} 6... Bd7 {[%clk
0:02:55.4]} 7. Qxd4 {[%clk 0:02:59.9]} 7... exd5 {[%clk 0:02:55.4]} 8. Bg5
{[%clk 0:02:59.2]} 8... Nc6 {[%clk 0:02:49.6]} 9. Qe3+ {[%clk 0:02:58.9]} 9...
Be6 {[%clk 0:02:45.6]} 10. O-O-O {[%clk 0:02:53.9]} 10... Be7 {[%clk 0:02:40.4]}
11. Nd4 {[%clk 0:02:44.8]} 11... Nxd4 {[%clk 0:02:36.9]} 12. Qxd4 {[%clk
0:02:45.7]} 12... O-O {[%clk 0:02:31.5]} 13. e3 {[%clk 0:02:39.6]} 13... Rc8
{[%clk 0:02:30.4]} 14. Bd3 {[%clk 0:02:30.8]} 14... Qa5 {[%clk 0:02:08.2]} 15.
Kb1 {[%clk 0:02:28.4]} 15... h6 {[%clk 0:01:11.6]} 16. Bh4 {[%clk 0:02:25.7]}
16... a6 {[%clk 0:01:02.3]} 17. Qa4 {[%clk 0:02:21]} 17... Qc7 {[%clk
0:00:41.9]} 18. Rc1 {[%clk 0:02:20.6]} 18... b5 {[%clk 0:00:40]} 19. Qd4 {[%clk
0:02:15.7]} 19... Qd7 {[%clk 0:00:31.2]} 20. e4 {[%clk 0:02:06.9]} 20... b4
{[%clk 0:00:25.3]} 21. Nxd5 {[%clk 0:02:01.4]} 21... Rxc1+ {[%clk 0:00:23.7]}
22. Rxc1 {[%clk 0:02:00.9]} 22... Nxd5 {[%clk 0:00:21.1]} 23. exd5 {[%clk
0:02:00.6]} 23... Bxh4 {[%clk 0:00:20.5]} 24. Qxh4 {[%clk 0:01:50.9]} 24... Qxd5
{[%clk 0:00:20.4]} 25. Bc4 {[%clk 0:01:39.6]} 25... Qxg2 {[%clk 0:00:19.6]} 26.
Bxe6 {[%clk 0:01:18.8]} 26... fxe6 {[%clk 0:00:18.8]} 27. Qxb4 {[%clk
0:01:13.7]} 27... Rxf2 {[%clk 0:00:14.9]} 28. Rc8+ {[%clk 0:01:10.9]} 28... Kh7
{[%clk 0:00:14.9]} 29. a4 {[%clk 0:01:10.2]} 29... Qh1+ {[%clk 0:00:07.7]} 30.
Ka2 {[%clk 0:01:08.4]} 30... Qd5+ {[%clk 0:00:07.6]} 31. Qb3 {[%clk 0:00:58.9]}
31... Rxh2 {[%clk 0:00:04.8]} 32. Qxd5 {[%clk 0:00:55.7]} 32... exd5 {[%clk
0:00:05.7]} 33. Rc6 {[%clk 0:00:55.7]} 33... d4 {[%clk 0:00:04.6]} 34. Rxa6
{[%clk 0:00:55.9]} 34... d3 {[%clk 0:00:04.6]} 35. Rd6 {[%clk 0:00:56.6]} 35...
d2 {[%clk 0:00:02.5]} 36. a5 {[%clk 0:00:57.5]} 36... Re2 {[%clk 0:00:01.5]} 37.
a6 {[%clk 0:00:58]} 37... Re7 {[%clk 0:00:01.7]} 38. Rxd2 {[%clk 0:00:58.3]}
38... Ra7 {[%clk 0:00:01.7]} 39. Rd6 {[%clk 0:00:59]} 39... h5 {[%clk
0:00:02.2]} 40. b4 {[%clk 0:00:59.1]} 40... h4 {[%clk 0:00:02.7]} 41. b5 {[%clk
0:00:59.6]} 41... h3 {[%clk 0:00:03.1]} 42. Rd3 {[%clk 0:00:59.5]} 1-0

[Event "Late-Titled-Tuesday-Blitz-April-16-2024"]
[Site "Chess.com"]
[Date "2024.04.16"]
[Round "1"]
[White "tptagain"]
[Black "Caracal3000"]
[Result "1-0"]
[WhiteElo "2939"]
[BlackElo "2500"]
[TimeControl "180+1"]
[EndTime "14:06:49 PDT"]
[Termination "tptagain won by resignation"]

1. d4 {[%clk 0:03:00.9]} 1... d5 {[%clk 0:02:59.8]} 2. Nf3 {[%clk 0:03:01.8]}
2... e6 {[%clk 0:03:00]} 3. c4 {[%clk 0:03:02.3]} 3... c6 {[%clk 0:03:00]} 4.
Nc3 {[%clk 0:03:02.7]} 4... dxc4 {[%clk 0:03:00.4]} 5. a4 {[%clk 0:03:02.3]}
5... Bb4 {[%clk 0:03:00.4]} 6. e3 {[%clk 0:03:02.9]} 6... b5 {[%clk 0:03:00.8]}
7. Bd2 {[%clk 0:03:03.1]} 7... a5 {[%clk 0:03:01.3]} 8. axb5 {[%clk 0:03:03.1]}
8... Bxc3 {[%clk 0:03:01.9]} 9. Bxc3 {[%clk 0:03:03.5]} 9... cxb5 {[%clk
0:03:02.6]} 10. b3 {[%clk 0:03:03.8]} 10... Bb7 {[%clk 0:02:59.2]} 11. bxc4
{[%clk 0:03:02.2]} 11... b4 {[%clk 0:02:59.8]} 12. Bb2 {[%clk 0:03:02.5]} 12...
Nf6 {[%clk 0:03:00.5]} 13. Bd3 {[%clk 0:03:02.2]} 13... O-O {[%clk 0:03:00]} 14.
O-O {[%clk 0:03:02.3]} 14... Nbd7 {[%clk 0:02:59.6]} 15. Nd2 {[%clk 0:02:58.5]}
15... Nc5 {[%clk 0:02:59.9]} 16. Bc2 {[%clk 0:02:57]} 16... Nce4 {[%clk
0:03:00.6]} 17. f3 {[%clk 0:02:48.6]} 17... Nxd2 {[%clk 0:02:48.8]} 18. Qxd2
{[%clk 0:02:49.5]} 18... Bc6 {[%clk 0:02:49.2]} 19. e4 {[%clk 0:02:48.2]} 19...
Qb6 {[%clk 0:02:45.7]} 20. Kh1 {[%clk 0:02:43.4]} 20... a4 {[%clk 0:02:29.8]}
21. d5 {[%clk 0:02:43.1]} 21... Bd7 {[%clk 0:02:20.3]} 22. Bd4 {[%clk
0:02:31.7]} 22... Qb7 {[%clk 0:02:13.7]} 23. e5 {[%clk 0:01:55.4]} 23... Nh5
{[%clk 0:00:45.2]} 24. Qg5 {[%clk 0:01:42.7]} 24... g6 {[%clk 0:00:43.7]} 25.
Be4 {[%clk 0:01:41.9]} 25... Qa6 {[%clk 0:00:34.2]} 26. Bc5 {[%clk 0:01:35.9]}
26... Rfb8 {[%clk 0:00:30.6]} 27. dxe6 {[%clk 0:01:05.7]} 27... Bxe6 {[%clk
0:00:31.5]} 28. Bxa8 {[%clk 0:01:06.1]} 28... Qxc4 {[%clk 0:00:21.3]} 29. Rfc1
{[%clk 0:01:02]} 29... Qe2 {[%clk 0:00:15]} 30. Be4 {[%clk 0:00:58.2]} 30... b3
{[%clk 0:00:15.6]} 31. Bd6 {[%clk 0:00:54.5]} 31... b2 {[%clk 0:00:04.4]} 32.
Bxb8 {[%clk 0:00:51.7]} 32... bxa1=Q {[%clk 0:00:02.6]} 33. Rxa1 {[%clk
0:00:51.3]} 33... Qb2 {[%clk 0:00:02.9]} 34. Rxa4 {[%clk 0:00:37.4]} 34... Qxb8
{[%clk 0:00:01.5]} 35. Ra8 {[%clk 0:00:36.8]} 35... Qxa8 {[%clk 0:00:01.6]} 36.
Bxa8 {[%clk 0:00:37.2]} 1-0

[Event "Late-Titled-Tuesday-Blitz-April-16-2024"]
[Site "Chess.com"]
[Date "2024.04.16"]
[Round "1"]
[White "Szparu"]
[Black "wild3000"]
[Result "1-0"]
[WhiteElo "2890"]
[BlackElo "2484"]
[TimeControl "180+1"]
[EndTime "14:06:50 PDT"]
[Termination "Szparu won on time"]

1. e4 {[%clk 0:03:00.9]} 1... c5 {[%clk 0:02:59.4]} 2. c3 {[%clk 0:03:00.4]}
2... e6 {[%clk 0:02:58.8]} 3. d4 {[%clk 0:03:00.6]} 3... d5 {[%clk 0:02:59.1]}
4. exd5 {[%clk 0:03:00.6]} 4... Qxd5 {[%clk 0:02:58.6]} 5. Nf3 {[%clk
0:03:00.6]} 5... Nf6 {[%clk 0:02:58.5]} 6. Na3 {[%clk 0:03:00.5]} 6... a6 {[%clk
0:02:58.3]} 7. Nc4 {[%clk 0:02:59.4]} 7... Qd8 {[%clk 0:02:57.4]} 8. Be3 {[%clk
0:02:54.5]} 8... b5 {[%clk 0:02:44.5]} 9. Nce5 {[%clk 0:02:53.9]} 9... cxd4
{[%clk 0:02:36.7]} 10. Bxd4 {[%clk 0:02:52.2]} 10... Bb7 {[%clk 0:02:28.4]} 11.
Ng5 {[%clk 0:02:47.3]} 11... Qd5 {[%clk 0:02:15.6]} 12. Ngxf7 {[%clk 0:02:45.2]}
12... Rg8 {[%clk 0:02:15.6]} 13. Ng5 {[%clk 0:02:31]} 13... Nc6 {[%clk
0:02:00.8]} 14. Ngf3 {[%clk 0:02:13.5]} 14... O-O-O {[%clk 0:01:47.7]} 15. Nxc6
{[%clk 0:01:50.6]} 15... Qxc6 {[%clk 0:01:43.4]} 16. Qc2 {[%clk 0:01:45.5]}
16... Bd6 {[%clk 0:01:32.5]} 17. O-O-O {[%clk 0:01:43.6]} 17... Qc7 {[%clk
0:01:18.8]} 18. Be2 {[%clk 0:01:37.4]} 18... Be4 {[%clk 0:01:09.2]} 19. Bd3
{[%clk 0:01:35.3]} 19... Bf4+ {[%clk 0:01:06.5]} 20. Kb1 {[%clk 0:01:33.4]}
20... Bxf3 {[%clk 0:01:02.5]} 21. gxf3 {[%clk 0:01:32.7]} 21... e5 {[%clk
0:00:54.9]} 22. Be3 {[%clk 0:01:32.2]} 22... g6 {[%clk 0:00:49.3]} 23. Be4
{[%clk 0:01:28]} 23... Nxe4 {[%clk 0:00:46.5]} 24. Qxe4 {[%clk 0:01:27.3]} 24...
Rxd1+ {[%clk 0:00:37.2]} 25. Rxd1 {[%clk 0:01:28.2]} 25... Qb7 {[%clk
0:00:27.4]} 26. Qxb7+ {[%clk 0:01:24.6]} 26... Kxb7 {[%clk 0:00:27.5]} 27. Rd7+
{[%clk 0:01:25.3]} 27... Kc6 {[%clk 0:00:27]} 28. Rxh7 {[%clk 0:01:24.6]} 28...
Rf8 {[%clk 0:00:22.5]} 29. Rh3 {[%clk 0:01:22.3]} 29... Kd5 {[%clk 0:00:20.5]}
30. Kc2 {[%clk 0:01:21.8]} 30... Ke6 {[%clk 0:00:20.4]} 31. Kd3 {[%clk 0:01:20]}
31... Kf5 {[%clk 0:00:20.4]} 32. Ke2 {[%clk 0:01:19.3]} 32... a5 {[%clk
0:00:17.9]} 33. Rh7 {[%clk 0:01:17.6]} 33... a4 {[%clk 0:00:16.7]} 34. a3 {[%clk
0:01:16.7]} 34... Rb8 {[%clk 0:00:14.3]} 35. h3 {[%clk 0:01:08.9]} 35... g5
{[%clk 0:00:14.1]} 36. h4 {[%clk 0:01:06.8]} 36... gxh4 {[%clk 0:00:13.5]} 37.
Rxh4 {[%clk 0:01:06.6]} 37... Rb7 {[%clk 0:00:10.6]} 38. Rh5+ {[%clk 0:01:04.3]}
38... Kg6 {[%clk 0:00:09.5]} 39. Rh1 {[%clk 0:01:04.2]} 39... Kf5 {[%clk
0:00:09.7]} 40. Rd1 {[%clk 0:01:03.9]} 40... Ke6 {[%clk 0:00:09.7]} 41. Rd8
{[%clk 0:01:01.2]} 41... Kf5 {[%clk 0:00:08.9]} 42. Kd3 {[%clk 0:00:59.7]} 42...
Rb6 {[%clk 0:00:07.4]} 43. Bxb6 {[%clk 0:00:59.6]} 1-0

[Event "Late-Titled-Tuesday-Blitz-April-16-2024"]
[Site "Chess.com"]
[Date "2024.04.16"]
[Round "1"]
[White "giovannibrandao7"]
[Black "SCIM"]
[Result "0-1"]
[WhiteElo "2234"]
[BlackElo "2581"]
[TimeControl "180+1"]
[EndTime "14:06:51 PDT"]
[Termination "SCIM won by resignation"]

1. e4 {[%clk 0:02:58.4]} 1... e5 {[%clk 0:02:58.5]} 2. Nf3 {[%clk 0:02:57.4]}
2... Nf6 {[%clk 0:02:58.1]} 3. d4 {[%clk 0:02:56.4]} 3... Nxe4 {[%clk
0:02:54.4]} 4. Bd3 {[%clk 0:02:56.2]} 4... d5 {[%clk 0:02:53.8]} 5. Nxe5 {[%clk
0:02:55.2]} 5... Nd7 {[%clk 0:02:51.1]} 6. Nxd7 {[%clk 0:02:54.5]} 6... Bxd7
{[%clk 0:02:49.5]} 7. O-O {[%clk 0:02:54.9]} 7... Bd6 {[%clk 0:02:48.6]} 8. Nd2
{[%clk 0:02:54.9]} 8... Nxd2 {[%clk 0:02:34.8]} 9. Bxd2 {[%clk 0:02:53]} 9...
O-O {[%clk 0:02:32.6]} 10. c3 {[%clk 0:02:49.3]} 10... Qh4 {[%clk 0:02:22.2]}
11. f4 {[%clk 0:02:48.9]} 11... Rae8 {[%clk 0:02:18.5]} 12. Qc2 {[%clk
0:02:40.3]} 12... Re7 {[%clk 0:02:05.1]} 13. Rae1 {[%clk 0:02:30.8]} 13... Rfe8
{[%clk 0:02:02.7]} 14. Rxe7 {[%clk 0:02:28.4]} 14... Rxe7 {[%clk 0:02:03.6]} 15.
Bf5 {[%clk 0:02:25.9]} 15... g6 {[%clk 0:01:38.7]} 16. Bxd7 {[%clk 0:02:24.2]}
16... Rxd7 {[%clk 0:01:39.6]} 17. g3 {[%clk 0:02:05.7]} 17... Qg4 {[%clk
0:01:34.8]} 18. Qd1 {[%clk 0:02:05.4]} 18... Qxd1 {[%clk 0:01:32.8]} 19. Rxd1
{[%clk 0:02:05.1]} 19... Re7 {[%clk 0:01:33.7]} 20. Kf2 {[%clk 0:02:04.6]} 20...
f5 {[%clk 0:01:31.5]} 21. Re1 {[%clk 0:02:03.5]} 21... Re4 {[%clk 0:01:31.4]}
22. Be3 {[%clk 0:01:39]} 22... Kf7 {[%clk 0:01:30]} 23. Kf3 {[%clk 0:01:38.1]}
23... Ke6 {[%clk 0:01:24.9]} 24. Rc1 {[%clk 0:01:37.8]} 24... Kd7 {[%clk
0:01:23.9]} 25. c4 {[%clk 0:01:35.4]} 25... dxc4 {[%clk 0:01:20.9]} 26. Rxc4
{[%clk 0:01:36.3]} 26... c6 {[%clk 0:01:20.7]} 27. a3 {[%clk 0:01:16]} 27... Bc7
{[%clk 0:01:19.9]} 28. Ke2 {[%clk 0:01:09.3]} 28... Bb6 {[%clk 0:01:18.7]} 29.
Kd3 {[%clk 0:01:09.6]} 29... Kd6 {[%clk 0:01:16.8]} 30. b4 {[%clk 0:01:07.5]}
30... Kd5 {[%clk 0:01:15.1]} 31. Bf2 {[%clk 0:00:47.4]} 31... h5 {[%clk
0:01:07]} 32. a4 {[%clk 0:00:43]} 32... a6 {[%clk 0:01:01.5]} 33. a5 {[%clk
0:00:38.7]} 33... Ba7 {[%clk 0:00:57.4]} 34. h4 {[%clk 0:00:07.9]} 34... Bb8
{[%clk 0:00:51.7]} 35. Rc2 {[%clk 0:00:04.1]} 35... Ba7 {[%clk 0:00:50.2]} 36.
Rc4 {[%clk 0:00:04.2]} 36... Re8 {[%clk 0:00:48.7]} 37. Rc2 {[%clk 0:00:03.6]}
37... Re7 {[%clk 0:00:44.8]} 38. Rc4 {[%clk 0:00:03.7]} 38... Re4 {[%clk
0:00:41.8]} 39. Rc2 {[%clk 0:00:03.9]} 0-1